bitfinex-derivatives/quotes_BNBF0:USTF0_20250709
["timestamp","ask_amount","ask_price","bid_price","bid_amount"]
[1752063686483,1.69753962,662.1,661.5,2.593]
[1752063690988,1.69753962,662.11,661.5,2.593]
[1752063691885,1.69753962,662.11,661.41,1.69437199]
[1752063692085,1.69753962,662.1,661.43,1.69437199]
[1752063694287,1.69753962,662.09,661.44,1.69437199]
[1752063695391,2.26015687,662.24,661.29,2.25729122]
[1752063695691,1.69344321,662.09,661.45,2.648]
[1752063700690,1.69344321,662.06,661.48,1.69007021]
[1752063703197,1.69344321,662.06,661.49,1.69007021]
[1752063703397,1.69344321,662.05,661.49,1.69007021]
[1752063703897,1.69344321,662.06,661.49,1.69007021]
[1752063704398,1.69344321,662.07,661.47,1.69007021]
[1752063704595,1.69344321,662.07,661.45,4.33807021]
[1752063704798,1.69344321,662.09,661.45,4.33807021]
[1752063704994,1.69344321,662.09,661.45,2.648]
[1752063705295,1.69344321,662.25,661.45,2.648]
[1752063705900,1.69344321,662.24,661.45,2.648]
[1752063706100,1.69344321,662.23,661.45,2.648]
[1752063707496,1.69344321,662.22,661.45,2.648]
[1752063708000,1.69344321,662.21,661.45,2.648]
[1752063708398,1.69344321,662.19,661.45,2.648]
[1752063708796,1.69344321,662.18,661.45,2.648]
[1752063710502,1.69344321,662.17,661.45,2.648]
[1752063711100,1.69344321,662.07,661.45,2.648]
[1752063711901,2.26015687,662.28,661.45,2.648]
[1752063711902,1.69344321,662.06,661.45,2.648]
[1752063712299,1.69344321,662.07,661.45,2.648]
[1752063712599,1.69344321,662.05,661.45,2.648]
[1752063713400,1.69344321,662.06,661.45,2.648]
[1752063713706,1.69344321,662.05,661.45,2.648]
[1752063713902,1.69344321,662.02,661.45,2.648]
[1752063714906,1.69344321,662.01,661.45,2.648]
[1752063715102,1.69344321,662.0,661.45,2.648]
[1752063715305,1.69344321,662.01,661.45,2.648]
[1752063715701,1.69344321,662.0,661.45,2.648]
[1752063716401,1.69344321,662.01,661.45,2.648]
[1752063717703,1.69344321,662.02,661.45,2.648]
[1752063718104,1.69344321,662.01,661.45,2.648]
[1752063718711,1.69344321,662.0,661.45,2.648]
[1752063719310,1.69344321,662.01,661.45,2.648]
[1752063719606,1.69344321,662.02,661.45,2.648]
[1752063724909,1.69344321,662.01,661.45,2.648]
[1752063726613,1.69344321,662.02,661.45,2.648]
[1752063731524,1.69344321,662.01,661.45,2.648]
[1752063731924,1.69344321,662.02,661.45,2.648]
[1752063732424,1.69344321,662.01,661.45,2.648]
[1752063732620,1.69344321,662.01,661.34,1.69007021]
[1752063732823,1.69344321,662.02,661.32,1.69007021]
[1752063733019,7.91054907,663.22,661.3,1.69007021]
[1752063733020,1.69344321,662.01,661.3,1.69007021]
[1752063733322,1.69344321,662.0,661.31,1.69007021]
[1752063733819,1.69344321,661.99,661.3,1.69007021]
[1752063734426,2.26015687,662.15,661.3,1.69007021]
[1752063734427,1.69344321,661.98,661.3,1.69007021]
[1752063734623,1.69344321,661.98,661.31,1.69007021]
[1752063734923,1.69344321,661.98,661.3,1.69007021]
[1752063735524,1.69344321,661.98,661.31,1.69007021]
[1752063736322,1.69344321,661.97,661.32,1.69007021]
[1752063736832,1.69344321,661.97,661.33,2.131]
[1752063737024,1.69344321,661.96,661.34,1.69007021]
[1752063737525,1.69344321,661.95,661.35,1.69007021]
[1752063738429,1.69344321,661.94,661.36,1.69007021]
[1752063739726,1.69344321,661.94,661.37,1.69007021]
[1752063741729,1.69344321,661.94,661.36,1.69007021]
[1752063741928,1.69344321,661.94,661.37,1.69007021]
[1752063742430,1.69344321,661.95,661.37,1.69007021]
[1752063742729,1.69344321,661.94,661.39,1.69007021]
[1752063744833,1.69344321,661.96,661.36,1.69007021]
[1752063746931,1.69344321,661.96,661.37,1.69007021]
[1752063748735,1.69344321,662.0,661.4,1.69007021]
[1752063750832,1.69344321,661.99,661.41,1.69007021]
[1752063751235,1.69344321,661.99,661.42,1.69007021]
[1752063754138,1.69344321,661.96,661.46,1.69007021]
[1752063756039,1.69344321,661.96,661.47,1.69007021]
[1752063758445,1.69344321,661.96,661.48,1.69007021]
[1752063758645,1.69344321,661.95,661.48,1.69007021]
[1752063758843,1.69344321,661.96,661.49,1.69007021]
[1752063760148,1.69344321,661.97,661.5,1.69007021]
[1752063760847,1.69344321,661.96,661.5,1.69007021]
[1752063761850,1.69344321,661.96,661.51,1.69007021]
[1752063763049,5.65039219,662.64,661.35,1.69007021]
[1752063763050,1.69344321,662.06,661.35,1.69007021]
[1752063763250,1.69344321,662.06,661.38,1.69007021]
[1752063763552,1.69344321,662.04,661.4,1.69007021]
[1752063763750,1.69344321,662.04,661.41,1.69007021]
[1752063764548,1.69344321,662.04,661.33,2.131]
[1752063764549,1.69344321,662.13,661.5,1.69007021]
[1752063765050,1.69344321,662.13,661.51,1.69007021]
[1752063765353,1.69344321,662.21,661.49,1.69007021]
[1752063766249,1.69344321,662.22,661.48,1.69007021]
[1752063767154,1.69344321,662.22,661.49,1.648]
[1752063767452,1.69344321,662.23,661.49,1.648]
[1752063768354,1.69344321,662.24,661.49,1.648]
[1752063768954,1.69344321,662.23,661.49,1.648]
[1752063769355,1.69344321,662.24,661.49,1.648]
[1752063771356,2.26015687,662.45,661.49,1.648]
[1752063771755,1.71430426,662.64,661.49,1.648]
[1752063771956,0.43985575,662.64,661.49,1.648]
[1752063772251,2.25924273,662.45,661.49,1.648]
[1752063772456,1.69443204,662.24,661.49,1.648]
[1752063772755,3.38886409,662.65,661.49,1.648]
[1752063773456,1.71408817,663.44,661.49,1.648]
[1752063773756,1.71408817,663.43,661.49,1.648]
[1752063773958,1.69412408,662.26,661.49,1.648]
[1752063775052,1.69412408,662.23,661.49,3.33823246]
[1752063775953,1.69412408,662.22,661.49,1.648]
[1752063777158,1.69412408,662.19,661.49,1.648]
[1752063778760,1.69412408,662.2,661.49,1.648]
[1752063779156,1.69412408,662.19,661.49,1.648]
[1752063779458,1.69412408,662.2,661.49,1.648]
[1752063779854,1.69412408,662.21,661.49,1.648]
[1752063780461,1.69412408,662.18,661.49,3.33823246]
[1752063781760,1.69412408,662.16,661.51,1.69023246]
[1752063782060,1.69412408,662.18,661.49,3.33823246]
[1752063783163,1.69412408,662.18,661.49,1.648]
[1752063783563,1.69412408,662.21,661.49,1.648]
[1752063786665,1.69412408,662.2,661.49,1.648]
[1752063791570,1.69412408,662.19,661.49,1.648]
[1752063792572,1.69412408,662.2,661.49,1.648]
[1752063793271,1.69412408,662.16,661.52,1.69023246]
[1752063794871,1.69412408,662.15,661.52,1.69023246]
[1752063796269,1.69412408,662.16,661.51,1.69023246]
[1752063796970,1.69412408,662.14,661.53,1.69023246]
[1752063797371,1.69412408,662.15,661.54,1.69023246]
[1752063800373,1.69412408,662.14,661.54,1.69023246]
[1752063800674,1.69412408,662.14,661.55,1.69023246]
[1752063800971,1.69412408,662.14,661.54,1.69023246]
[1752063801377,1.69412408,662.14,661.55,1.69023246]
[1752063802279,1.69412408,662.13,661.55,1.69023246]
[1752063803078,1.69412408,662.15,661.53,1.69023246]
[1752063803981,1.69412408,662.16,661.53,1.69023246]
[1752063804480,1.69412408,662.15,661.53,1.69023246]
[1752063805279,1.69412408,662.15,661.54,1.69023246]
[1752063805582,1.69412408,662.16,661.53,1.69023246]
[1752063806182,1.69412408,662.15,661.55,1.69023246]
[1752063806383,1.69412408,662.14,661.55,1.69023246]
[1752063806978,1.69412408,662.15,661.55,1.69023246]
[1752063807280,1.69412408,662.14,661.55,1.69023246]
[1752063808285,1.69412408,662.14,661.56,1.69023246]
[1752063809280,1.69412408,662.13,661.56,1.69023246]
[1752063811381,1.69412408,662.13,661.57,1.69023246]
[1752063813187,1.69412408,662.14,661.55,1.69023246]
[1752063813787,1.69412408,662.13,661.56,1.69023246]
[1752063815493,1.69412408,662.12,661.57,1.69023246]
[1752063817192,1.69412408,662.12,661.58,1.69023246]
[1752063817391,1.69412408,662.11,661.58,1.69023246]
[1752063817892,1.69412408,662.18,661.48,1.69023246]
[1752063818096,1.69412408,662.19,661.48,1.69023246]
[1752063818296,1.69412408,662.19,661.49,1.69023246]
[1752063819199,1.69412408,662.18,661.49,1.69023246]
[1752063819695,1.69412408,662.18,661.5,1.805]
[1752063820193,1.69412408,662.18,661.5,3.49523246]
[1752063821403,1.69412408,662.17,661.5,3.49523246]
[1752063822296,1.69412408,662.17,661.51,1.69023246]
[1752063822900,1.69412408,662.16,661.51,1.69023246]
[1752063823097,1.69412408,662.16,661.52,1.69023246]
[1752063823301,1.69412408,662.15,661.52,1.69023246]
[1752063824202,1.69412408,662.14,661.53,1.69023246]
[1752063827306,1.69412408,662.14,661.54,1.69023246]
[1752063827507,1.69412408,662.14,661.53,1.69023246]
[1752063827903,1.69412408,662.08,661.63,1.69023246]
[1752063828105,1.69412408,662.09,661.61,1.69023246]
[1752063828810,1.69412408,662.09,661.62,1.69023246]
[1752063829411,1.69412408,662.08,661.62,1.69023246]
[1752063834414,1.69412408,662.09,661.61,1.69023246]
[1752063834815,1.69412408,662.06,661.65,1.69023246]
[1752063835112,1.69412408,662.07,661.65,1.69023246]
[1752063835411,1.69412408,662.06,661.65,1.69023246]
[1752063836015,1.69412408,662.07,661.64,1.69023246]
[1752063837611,1.69412408,662.09,661.61,1.69023246]
[1752063837913,1.69412408,662.11,661.58,1.69023246]
[1752063841417,1.69412408,662.11,661.59,1.69023246]
[1752063842017,1.69412408,662.11,661.58,1.69023246]
[1752063842416,1.69412408,662.11,661.59,1.69023246]
[1752063842719,1.69412408,662.1,661.62,1.69023246]
[1752063844017,1.69412408,662.09,661.63,1.69023246]
[1752063845020,1.69412408,662.08,661.65,1.69023246]
[1752063845722,1.69412408,662.07,661.66,1.69023246]
[1752063845922,1.69412408,662.08,661.66,1.69023246]
[1752063847427,1.69412408,662.11,661.61,1.69023246]
[1752063847724,1.69412408,662.17,661.67,1.69023246]
[1752063849427,1.69412408,662.18,661.66,1.69023246]
[1752063850023,1.69412408,662.18,661.67,1.711]
[1752063850527,1.69412408,662.17,661.67,3.40123246]
[1752063851329,1.69412408,662.19,661.67,3.40123246]
[1752063851529,1.69412408,662.19,661.67,1.711]
[1752063851730,1.69412408,662.18,661.68,1.69023246]
[1752063852428,1.69412408,662.19,661.68,1.69023246]
[1752063852926,1.69412408,662.18,661.68,1.69023246]
[1752063853227,1.69412408,662.19,661.69,1.69023246]
[1752063853429,1.69412408,662.19,661.68,1.69023246]
[1752063853629,1.69412408,662.19,661.69,1.69023246]
[1752063853824,1.69412408,662.18,661.68,1.69023246]
[1752063854225,1.69412408,662.18,661.69,1.69023246]
[1752063854424,1.69412408,662.18,661.68,1.69023246]
[1752063855031,1.69412408,662.2,661.67,1.711]
[1752063855731,1.69412408,662.21,661.67,1.711]
[1752063860130,1.69412408,662.22,661.67,1.711]
[1752063860333,1.69412408,662.21,661.67,1.711]
[1752063863738,1.69412408,662.2,661.67,3.40123246]
[1752063865735,1.69412408,662.2,661.67,1.711]
[1752063868339,1.69412408,662.21,661.67,1.711]
[1752063868635,1.69412408,662.2,661.67,3.40123246]
[1752063868834,1.69412408,662.19,661.68,1.69023246]
[1752063870039,1.69412408,662.2,661.67,1.711]
[1752063870240,1.69412408,662.2,661.67,3.40123246]
[1752063875237,1.69412408,662.21,661.67,3.40123246]
[1752063875438,1.69412408,662.2,661.67,3.40123246]
[1752063875637,1.69412408,662.19,661.68,1.69023246]
[1752063876237,1.69412408,662.2,661.67,3.40123246]
[1752063877540,1.69412408,662.2,661.68,1.69023246]
[1752063878244,1.69412408,662.19,661.7,1.69023246]
[1752063879842,1.69412408,662.23,661.71,1.69023246]
[1752063881451,1.69412408,662.22,661.7,1.69023246]
[1752063881655,1.69412408,662.23,661.72,1.69023246]
[1752063885056,1.69412408,662.24,661.7,1.69023246]
[1752063886453,1.69412408,662.24,661.71,1.69023246]
[1752063888256,1.69412408,662.23,661.73,1.69023246]
[1752063888658,1.69412408,662.23,661.72,1.69023246]
[1752063889357,1.69412408,662.23,661.73,1.69023246]
[1752063890158,1.69412408,662.24,661.71,1.69023246]
[1752063891155,1.69412408,662.24,661.7,1.69023246]
[1752063892759,1.69412408,662.24,661.71,1.69023246]
[1752063893355,1.69412408,662.23,661.72,1.69023246]
[1752063894355,5.65039219,663.06,661.44,3.6433177]
[1752063894356,1.69412408,662.24,661.71,1.69023246]
[1752063894856,2.25883211,662.38,661.57,2.25364328]
[1752063895059,1.69600522,662.24,661.71,1.69225977]
[1752063895457,1.69600522,662.23,661.71,1.69225977]
[1752063895961,1.69600522,662.23,661.72,2.089]
[1752063896357,1.69600522,662.23,661.72,3.78125977]
[1752063897860,1.69600522,662.22,661.73,1.69225977]
[1752063898356,3.38824817,662.48,661.72,2.089]
[1752063898357,1.69600522,662.25,661.72,2.089]
[1752063898657,1.69600522,662.26,661.72,2.089]
[1752063899359,1.69600522,662.25,661.72,2.089]
[1752063900561,2.25883211,662.42,661.72,2.089]
[1752063900762,1.69641759,662.26,661.72,2.089]
[1752063902461,1.69641759,662.25,661.72,2.089]
[1752063902857,1.69641759,662.26,661.72,2.089]
[1752063904361,1.69641759,662.25,661.72,2.089]
[1752063905666,1.69641759,662.26,661.72,2.089]
[1752063906560,1.69641759,662.25,661.72,2.089]
[1752063908164,1.69641759,662.23,661.72,2.089]
[1752063910367,5.65039219,663.2,661.72,3.78166029]
[1752063910368,1.69641759,662.22,661.72,3.78166029]
[1752063911067,1.69641759,662.23,661.72,2.089]
[1752063911367,1.69641759,662.22,661.72,2.089]
[1752063911564,1.69641759,662.22,661.72,3.78166029]
[1752063912566,1.69641759,662.21,661.73,1.69266029]
[1752063912766,1.69641759,662.21,661.74,1.69266029]
[1752063915267,1.69641759,662.19,661.76,1.69266029]
[1752063916268,1.69641759,662.2,661.72,2.089]
[1752063916468,1.69641759,662.17,661.72,2.089]
[1752063917173,1.69641759,662.18,661.72,2.089]
[1752063919873,1.69641759,662.17,661.72,2.089]
[1752063920074,1.69641759,662.16,661.72,2.089]
[1752063920570,1.69641759,662.14,661.72,2.089]
[1752063922176,1.69641759,662.15,661.72,2.089]
[1752063925377,2.25883211,662.32,661.72,2.089]
[1752063925378,1.69641759,662.16,661.72,2.089]
[1752063926082,1.69641759,662.12,661.72,2.089]
[1752063926678,1.69641759,662.13,661.72,2.089]
[1752063929383,1.69641759,662.14,661.72,2.089]
[1752063929878,1.69641759,662.13,661.72,2.089]
[1752063931280,1.69641759,662.14,661.72,2.089]
[1752063931484,1.69641759,662.15,661.72,2.089]
[1752063933982,1.69641759,662.16,661.72,2.089]
[1752063936284,1.69641759,662.15,661.72,2.089]
[1752063936884,1.69641759,662.16,661.72,2.089]
[1752063937387,3.38824817,662.47,661.72,2.089]
[1752063937388,1.69641759,662.17,661.72,2.089]
[1752063941091,1.69641759,662.18,661.72,2.089]
[1752063941388,1.69641759,662.17,661.72,2.089]
[1752063941590,5.65039219,663.08,661.72,2.089]
[1752063941591,1.69641759,662.16,661.72,2.089]
[1752063942091,1.69641759,662.17,661.72,2.089]
[1752063944588,1.6953785,662.17,661.72,2.089]
[1752063945693,1.6953785,662.16,661.72,2.089]
[1752063945988,1.6953785,662.16,661.62,1.6912007]
[1752063946188,1.6953785,662.16,661.61,1.6912007]
[1752063948492,1.6953785,662.18,661.61,1.6912007]
[1752063948795,1.6953785,662.18,661.58,1.6912007]
[1752063949492,1.6953785,662.18,661.59,2.102]
[1752063951596,1.6953785,662.19,661.59,2.102]
[1752063951795,1.6953785,662.2,661.59,2.102]
[1752063952992,1.6953785,662.21,661.59,3.7932007]
[1752063953193,1.6953785,662.22,661.6,1.6912007]
[1752063953496,1.6953785,662.21,661.63,1.6912007]
[1752063953996,1.6953785,662.2,661.64,1.6912007]
[1752063954397,1.69539941,662.25,661.69,1.69161096]
[1752063956096,1.69539941,662.24,661.69,1.69161096]
[1752063957699,1.69539941,662.25,661.69,1.69161096]
[1752063960600,1.69539941,662.23,661.72,1.69161096]
[1752063961496,1.69539941,662.23,661.6,2.25364328]
[1752063961497,1.69539941,662.23,661.73,1.69161096]
[1752063961899,1.69539941,662.23,661.72,1.69161096]
[1752063963097,1.69539941,662.22,661.72,1.69161096]
[1752063965101,1.69539941,662.3,661.6,1.69161096]
[1752063965301,7.91054907,663.23,661.59,2.102]
[1752063965302,1.69539941,662.26,661.59,2.102]
[1752063967202,5.65039219,663.43,661.59,2.102]
[1752063967203,1.69539941,662.24,661.59,2.102]
[1752063968098,1.69539941,662.23,661.59,2.102]
[1752063973108,1.69539941,662.15,661.68,1.69161096]
[1752063973313,2.25883211,662.27,661.68,1.69161096]
[1752063973314,1.69539941,662.14,661.68,1.69161096]
[1752063974513,1.69539941,662.15,661.68,1.69161096]
[1752063975212,1.69539941,662.14,661.68,1.69161096]
[1752063978313,1.69539941,662.14,661.69,2.391]
[1752063978509,1.69539941,662.13,661.69,4.08261096]
[1752063979910,1.69539941,662.12,661.7,1.69161096]
[1752063980213,1.69539941,662.13,661.7,1.69161096]
[1752063980810,1.69539941,662.12,661.7,1.69161096]
[1752063981417,1.69539941,662.13,661.69,4.08261096]
[1752063982918,1.69539941,662.13,661.7,1.69161096]
[1752063984420,1.69539941,662.12,661.71,1.69161096]
[1752063985519,1.69539941,662.13,661.7,1.69161096]
[1752063987521,1.69539941,662.12,661.7,1.69161096]
[1752063989325,1.69539941,662.21,661.69,2.391]
[1752063990825,1.69539941,662.2,661.69,2.391]
[1752063997529,1.69539941,662.21,661.69,2.391]
[1752063999033,1.69539941,662.16,661.69,2.391]
[1752064000136,1.69539941,662.13,661.69,2.391]
[1752064000335,1.69539941,662.12,661.69,2.391]
[1752064000631,1.69539941,662.11,661.69,2.391]
[1752064003136,1.69539941,662.12,661.69,2.391]
[1752064004233,1.69539941,662.11,661.69,2.391]
[1752064007339,1.69539941,662.12,661.69,2.391]
[1752064008643,1.69539941,662.1,661.69,2.391]
[1752064009643,1.69539941,662.1,661.69,4.08261096]
[1752064009844,1.69539941,662.1,661.69,2.391]
[1752064010144,1.69539941,662.13,661.69,2.391]
[1752064010840,1.69539941,662.14,661.69,2.391]
[1752064012240,1.69539941,662.13,661.69,2.391]
[1752064013440,1.69539941,662.13,661.62,1.69161096]
[1752064015144,1.69539941,662.13,661.63,1.69161096]
[1752064015945,1.69539941,662.13,661.62,1.69161096]
[1752064016142,1.69539941,662.13,661.64,2.361]
[1752064017147,1.69539941,662.12,661.64,2.361]
[1752064019347,1.69539941,662.15,661.64,2.361]
[1752064020042,1.69539941,662.14,661.64,2.361]
[1752064021246,1.69539941,662.13,661.64,2.361]
[1752064023951,1.69539941,662.12,661.64,2.361]
[1752064025350,1.69539941,662.11,661.64,2.361]
[1752064026452,1.69539941,662.11,661.64,4.05261096]
[1752064027956,1.69539941,662.11,661.64,2.361]
[1752064028857,1.69539941,662.07,661.69,1.69161096]
[1752064029958,1.69539941,662.07,661.7,1.69161096]
[1752064030158,1.69829093,662.07,661.7,1.69540556]
[1752064035560,1.69829093,662.08,661.69,1.69540556]
[1752064036467,1.69829093,662.08,661.68,1.69540556]
[1752064037467,1.69829093,662.08,661.69,1.69540556]
[1752064037868,1.69829093,662.07,661.69,1.69540556]
[1752064038265,1.69829093,662.08,661.69,1.69540556]
[1752064038566,1.69829093,662.07,661.69,1.69540556]
[1752064038768,1.69829093,662.07,661.7,1.69540556]
[1752064040166,1.69829093,662.07,661.71,1.69540556]
[1752064041366,1.69829093,662.08,661.69,1.69540556]
[1752064041567,1.69829093,662.07,661.69,1.69540556]
[1752064044068,1.69855201,662.07,661.69,1.69566192]
[1752064044473,1.69855201,662.07,661.7,1.69566192]
[1752064046170,1.69855201,662.09,661.67,1.69566192]
[1752064046669,1.69855201,662.08,661.67,1.69566192]
[1752064046871,1.69855201,662.09,661.68,1.69566192]
[1752064047375,1.69855201,662.09,661.67,1.69566192]
[1752064047572,1.69855201,662.08,661.66,1.69566192]
[1752064047775,1.69855201,662.09,661.65,1.69566192]
[1752064048672,1.69855201,662.09,661.66,1.69566192]
[1752064048973,1.69855201,662.09,661.65,1.69566192]
[1752064053179,1.69855201,662.09,661.5,2.25364328]
[1752064053180,1.69855201,662.09,661.64,1.69566192]
[1752064053480,1.69855201,662.1,661.64,1.69566192]
[1752064055579,1.69855201,662.09,661.65,1.69566192]
[1752064055779,1.69855201,662.09,661.66,1.69566192]
[1752064056076,1.69855201,662.09,661.65,1.69566192]
[1752064057078,1.69855201,662.1,661.64,1.69566192]
[1752064059178,1.69855201,662.09,661.64,1.69566192]
[1752064062087,1.69855201,662.12,661.6,1.69566192]
[1752064064382,1.69855201,662.12,661.61,1.69566192]
[1752064066883,1.69855201,662.12,661.6,1.69566192]
[1752064067087,1.69855201,662.12,661.61,1.69566192]
[1752064068383,1.69855201,662.11,661.61,1.69566192]
[1752064071589,2.25883211,662.29,661.49,2.59189051]
[1752064071794,1.69901627,662.09,661.64,1.69580388]
[1752064071992,1.69901627,662.09,661.65,1.69580388]
[1752064072189,1.69901627,662.09,661.64,1.69580388]
[1752064072493,1.69901627,662.09,661.65,1.69580388]
[1752064073797,1.69901627,662.07,661.67,1.69580388]
[1752064076796,1.69901627,662.06,661.69,1.69580388]
[1752064077195,1.69901627,662.07,661.68,1.69580388]
[1752064077990,1.69901627,662.06,661.69,1.69580388]
[1752064079499,1.69901627,662.07,661.68,1.69580388]
[1752064079698,1.69901627,662.04,661.66,1.69580388]
[1752064081597,1.69901627,662.04,661.65,1.69580388]
[1752064084302,1.69901627,662.05,661.65,1.69580388]
[1752064085098,1.69901627,662.04,661.65,1.69580388]
[1752064085398,1.69901627,662.05,661.64,1.69580388]
[1752064085799,1.69901627,662.08,661.59,1.69580388]
[1752064085999,1.69901627,662.0,661.49,4.28769439]
[1752064086302,1.69901627,661.99,661.49,2.59189051]
[1752064086498,1.69901627,662.0,661.49,2.59189051]
[1752064087404,1.69901627,662.01,661.49,2.59189051]
[1752064088299,1.69901627,662.02,661.49,2.59189051]
[1752064088704,1.69901627,662.03,661.49,2.59189051]
[1752064089906,1.69901627,662.03,661.49,2.329]
[1752064090907,1.69901627,661.94,661.49,2.329]
[1752064091606,5.65039219,662.78,661.49,2.329]
[1752064091607,1.69901627,661.95,661.49,2.329]
[1752064093506,1.69901627,661.96,661.49,2.329]
[1752064094209,1.69901627,661.94,661.49,2.329]
[1752064094407,1.69901627,661.95,661.49,2.329]
[1752064094607,1.69901627,661.94,661.49,2.329]
[1752064095309,1.69901627,661.95,661.49,2.329]
[1752064096409,1.69901627,661.96,661.49,2.329]
[1752064099213,1.69901627,661.97,661.49,2.329]
[1752064099912,1.69901627,661.98,661.49,2.329]
[1752064100714,1.69901627,661.99,661.39,0.2629501]
[1752064101415,1.69901627,662.0,661.39,0.2629501]
[1752064102416,1.69901627,662.01,661.39,0.2629501]
[1752064103121,1.69901627,662.05,661.39,1.95875398]
[1752064104021,1.69901627,662.06,661.39,1.95875398]
[1752064104820,1.69901627,662.05,661.4,1.855]
[1752064105417,1.69901627,662.06,661.4,1.855]
[1752064106522,1.69901627,662.07,661.4,1.855]
[1752064108526,1.69901627,662.2,661.4,1.855]
[1752064108822,1.69901627,662.21,661.4,1.855]
[1752064118429,1.69901627,662.13,661.4,1.855]
[1752064118631,1.69901627,662.12,661.4,1.855]
[1752064118826,1.69901627,662.11,661.4,1.855]
[1752064121531,1.69901627,662.08,661.4,3.55080388]
[1752064122428,1.69901627,662.06,661.44,1.69580388]
[1752064122834,1.69901627,662.04,661.46,1.69580388]
[1752064125434,1.69901627,662.04,661.47,1.69580388]
[1752064125936,1.69901627,662.04,661.46,1.69580388]
[1752064127330,1.69901627,662.03,661.47,1.69580388]
[1752064129435,1.69901627,662.03,661.46,1.69580388]
[1752064130334,1.69901627,662.03,661.47,1.69580388]
[1752064130830,1.69901627,662.05,661.44,1.69580388]
[1752064131136,1.69901627,662.14,661.4,1.855]
[1752064131632,1.69901627,662.19,661.4,3.55080388]
[1752064131835,1.69901627,662.22,661.43,1.69580388]
[1752064132232,1.69901627,662.23,661.43,1.69580388]
[1752064132533,1.69901627,662.22,661.43,1.69580388]
[1752064134136,1.69901627,662.22,661.44,1.69580388]
[1752064135033,1.69901627,662.21,661.47,1.69580388]
[1752064135936,1.69901627,662.2,661.48,1.69580388]
[1752064137132,1.69901627,662.21,661.47,1.69580388]
[1752064137332,1.69901627,662.23,661.49,1.69580388]
[1752064137736,1.69901627,662.24,661.51,1.69580388]
[1752064140238,1.69901627,662.23,661.52,1.69580388]
[1752064140734,1.69901627,662.22,661.53,1.69580388]
[1752064141039,1.69901627,662.25,661.56,1.69580388]
[1752064141235,1.69901627,662.25,661.55,1.69580388]
[1752064142135,1.69901627,662.25,661.56,1.69580388]
[1752064143142,1.69901627,662.25,661.57,2.248]
[1752064144246,1.69901627,662.26,661.57,2.248]
[1752064144543,1.69901627,662.21,661.63,1.69580388]
[1752064145540,1.69901627,662.21,661.62,1.69580388]
[1752064146741,1.69901627,662.27,661.67,1.69580388]
[1752064147543,1.69901627,662.27,661.66,1.69580388]
[1752064147743,1.69901627,662.27,661.65,1.69580388]
[1752064148140,2.25883211,662.41,661.57,2.248]
[1752064148447,1.69272053,662.3,661.61,1.69020483]
[1752064149243,1.69272053,662.3,661.6,1.69020483]
[1752064150345,1.69272053,662.31,661.6,1.69020483]
[1752064150744,1.69272053,662.3,661.61,1.69020483]
[1752064151348,1.69272053,662.32,661.58,1.69020483]
[1752064151748,1.69272053,662.28,661.57,2.248]
[1752064151947,1.69272053,662.25,661.57,2.248]
[1752064157852,1.69272053,662.23,661.57,2.248]
[1752064161151,1.69272053,662.2,661.6,1.69020483]
[1752064161450,1.69272053,662.2,661.61,1.69020483]
[1752064162252,1.69272053,662.2,661.62,1.69020483]
[1752064164552,1.69272053,662.2,661.61,1.69020483]
[1752064165053,1.69272053,662.2,661.57,2.248]
[1752064165054,1.69272053,662.2,661.62,1.69020483]
[1752064165647,1.69272053,662.22,661.59,1.69020483]
[1752064167054,1.69272053,662.21,661.6,1.69020483]
[1752064167250,1.69272053,662.21,661.59,1.69020483]
[1752064167454,1.69272053,662.21,661.6,1.69020483]
[1752064169751,1.69272053,662.21,661.57,2.248]
[1752064169752,1.69272053,662.22,661.59,1.69020483]
[1752064170152,1.69272053,662.23,661.57,3.93820483]
[1752064170359,1.69272053,662.22,661.57,2.248]
[1752064170556,1.69272053,662.23,661.57,2.248]
[1752064173455,1.69272053,662.22,661.57,3.93820483]
[1752064174359,1.69272053,662.21,661.57,3.93820483]
[1752064174855,1.69272053,662.22,661.58,1.69020483]
[1752064175757,1.69272053,662.23,661.57,2.248]
[1752064176559,1.69272053,662.23,661.57,3.93820483]
[1752064176761,1.69272053,662.23,661.57,2.248]
[1752064177459,1.69272053,662.23,661.57,3.93820483]
[1752064178158,1.69272053,662.22,661.57,3.93820483]
[1752064178359,1.69272053,662.22,661.58,1.69020483]
[1752064178860,1.69272053,662.21,661.59,1.69020483]
[1752064179055,1.69272053,662.23,661.61,1.69020483]
[1752064179660,1.69272053,662.21,661.63,1.69020483]
[1752064180860,1.69272053,662.22,661.61,1.69020483]
[1752064181462,1.69272053,662.22,661.62,1.69020483]